[Event "84th ESP-ch 2019"]
[Site "Marbella"]
[Date "2019.11.19"]
[Round "4.22"]
[White "Berrocal Ruiz, Valentin"]
[Black "Gomez Dieguez, David"]
[Result "1-0"]
[ECO "B39"]
[WhiteElo "2143"]
[BlackElo "2336"]
[Annotator "ChessBase"]
[PlyCount "61"]
[EventDate "2019.11.16"]
[EventType "swiss"]
[EventCountry "ESP"]
[SourceTitle "playchess.com"]
[Source "ChessBase"]
[SourceQuality "1"]
[TimeControl "5400+30"]

1. Nf3 {[%emt 0:00:00]} Nf6 {[%emt 0:00:00]} 2. c4 {[%emt 0:00:00]} c5 {[%emt 0:00:00]} 3. Nc3 {[%emt 0:00:00]} Nc6 {[%emt 0:00:00]} 4. d4 {[%emt 0:00:21]} cxd4 {[%emt 0:00:05]} 5. Nxd4 {[%emt 0:00:05]} g6 {[%emt 0:03:10]} 6. e4 {[%emt 0:00:18]} Bg7 {[%emt 0:00:03]} 7. Be3 {[%emt 0:00:10]} Ng4 {[%emt 0:00:15]} 8. Qxg4 {[%emt 0:00:10]} Nxd4 {[%emt 0:00:02]} 9. Qd1 {[%emt 0:00:07]} Ne6 {[%emt 0:00:04]} 10. Rc1 {[%emt 0:01:21]} Qa5 {[%emt 0:00:23]} 11. Be2 {[%emt 0:01:40]} b6 {[%emt 0:00:21]} 12. Qd5 {[%emt 0:00:13]} Qxd5 {[%emt 0:03:09]} 13. cxd5 {[%emt 0:05:19]} Nd4 {[%emt 0:12:35]} 14. Bd3 {[%emt 0:00:32]} O-O {[%emt 0:03:20]} 15. O-O {[%emt 0:00:23]} f5 {[%emt 0:06:17]} 16. e5 {[%emt 0:05:19]} Bxe5 {[%emt 0:05:52]} 17. f4 {[%emt 0:00:06]} Bg7 {[%emt 0:02:30]} 18. Rfd1 {[%emt 0:00:07]} d6 {[%emt 0:00:20]} 19. Bb1 {[%emt 0:05:34]} e5 {[%emt 0:01:35]} 20. dxe6 {[%emt 0:00:12]} Nxe6 {[%emt 0:01:52]} 21. Rxd6 {[%emt 0:01:52]} Re8 {[%emt 0:11:38]} 22. a3 {[%emt 0:35:54]} Nc5 {[%emt 0:17:30]} 23. Ba2+ {[%emt 0:05:30]} Kf8 {[%emt 0:04:43]} 24. Nd5 {[%emt 0:07:36]} Bxb2 {[%emt 0:15:11]} 25. Rxc5 {[%emt 0:01:08]} Bxa3 {[%emt 0:02:59]} 26. Rf6+ {[%emt 0:01:14]} Kg7 {[%emt 0:00:07]} 27. Rc7+ {[%emt 0:00:06]} Kh6 {[%emt 0:00:07]} 28. Rff7 {[%emt 0:00:14]} Rh8 {[%emt 0:00:46]} 29. Nf6 {[%emt 0:00:26]} g5 {[%emt 0:00:04]} 30. fxg5+ {[%emt 0:00:11]} Kg6 {[%emt 0:00:03]} 31. Rg7# 1-0

[Event "84th ESP-ch 2019"]
[Site "Marbella"]
[Date "2019.11.19"]
[Round "4.23"]
[White "Guerra Rivera, Salvador"]
[Black "Collado Barbas, Laura"]
[Result "1-0"]
[ECO "C05"]
[WhiteElo "2334"]
[BlackElo "2142"]
[Annotator "ChessBase"]
[PlyCount "55"]
[EventDate "2019.11.16"]
[EventType "swiss"]
[EventCountry "ESP"]
[SourceTitle "playchess.com"]
[Source "ChessBase"]
[SourceQuality "1"]
[TimeControl "5400+30"]

1. e4 {[%emt 0:00:00]} e6 {[%emt 0:00:00]} 2. d4 {[%emt 0:00:01]} d5 {[%emt 0:00:00]} 3. Nd2 {[%emt 0:00:29]} Nf6 {[%emt 0:00:14]} 4. e5 {[%emt 0:00:38]} Nfd7 {[%emt 0:00:06]} 5. f4 {[%emt 0:00:06]} c5 {[%emt 0:00:17]} 6. Ngf3 {[%emt 0:00:39]} Nc6 {[%emt 0:01:07]} 7. Nb3 {[%emt 0:00:22]} cxd4 {[%emt 0:09:33]} 8. Nfxd4 {[%emt 0:01:12]} Nc5 {[%emt 0:04:07]} 9. Be3 {[%emt 0:00:27]} Ne4 {[%emt 0:12:25]} 10. Bd3 {[%emt 0:01:23]} f5 {[%emt 0:07:58]} 11. O-O {[%emt 0:08:23]} g6 {[%emt 0:06:40]} 12. a3 {[%emt 0:09:20]} a6 {[%emt 0:05:15]} 13. c4 {[%emt 0:06:06]} Nxd4 {[%emt 0:05:32]} 14. Nxd4 {[%emt 0:00:10]} dxc4 {[%emt 0:05:23]} 15. Bxc4 {[%emt 0:00:28]} Bc5 {[%emt 0:00:50]} 16. Qd3 {[%emt 0:08:14]} b5 {[%emt 0:09:28]} 17. Ba2 {[%emt 0:01:40]} Kf7 {[%emt 0:01:06]} 18. Rac1 {[%emt 0:10:42]} Re8 {[%emt 0:08:40]} 19. Rfd1 {[%emt 0:01:56]} Bb6 {[%emt 0:13:11]} 20. Rc6 {[%emt 0:07:01]} Bxd4 {[%emt 0:04:48]} 21. Qxd4 {[%emt 0:00:15]} Bb7 {[%emt 0:02:42]} 22. Rxe6 {[%emt 0:07:44]} Qxd4 {[%emt 0:00:42]} 23. Rf6+ {[%emt 0:00:59]} Kg7 {[%emt 0:00:44]} 24. Rf7+ {[%emt 0:00:06]} Kh8 {[%emt 0:00:34]} 25. Bxd4 {[%emt 0:00:05]} Bc6 {[%emt 0:00:35]} 26. e6+ {[%emt 0:00:16]} Kg8 {[%emt 0:00:01]} 27. Rg7+ {[%emt 0:00:08]} Kf8 {[%emt 0:00:55]} 28. e7+ {[%emt 0:00:20]} 1-0

[Event "84th ESP-ch 2019"]
[Site "Marbella"]
[Date "2019.11.19"]
[Round "4.24"]
[White "Rahal, Michael A"]
[Black "Romero Calduch, Sergio"]
[Result "1-0"]
[ECO "B12"]
[WhiteElo "2309"]
[BlackElo "2130"]
[Annotator "ChessBase"]
[PlyCount "103"]
[EventDate "2019.11.16"]
[EventType "swiss"]
[EventCountry "ESP"]
[SourceTitle "playchess.com"]
[Source "ChessBase"]
[SourceQuality "1"]
[TimeControl "5400+30"]

1. e4 {[%emt 0:00:05]} c6 {[%emt 0:00:00]} 2. d4 {[%emt 0:02:05]} d5 {[%emt 0:00:02]} 3. f3 {[%emt 0:01:22]} dxe4 {[%emt 0:02:41]} 4. fxe4 {[%emt 0:00:06]} e5 {[%emt 0:00:14]} 5. Nf3 {[%emt 0:00:24]} exd4 {[%emt 0:00:40]} 6. Bc4 {[%emt 0:01:12]} Nf6 {[%emt 0:18:18]} 7. O-O {[%emt 0:06:26]} Be7 {[%emt 0:09:11]} 8. Ng5 {[%emt 0:05:25]} O-O {[%emt 0:05:21]} 9. Nxf7 {[%emt 0:01:59]} Rxf7 {[%emt 0:00:05]} 10. Bxf7+ {[%emt 0:00:23]} Kxf7 {[%emt 0:00:06]} 11. e5 {[%emt 0:00:17]} Kg8 {[%emt 0:00:29]} 12. exf6 {[%emt 0:00:07]} Bxf6 {[%emt 0:00:07]} 13. Nd2 {[%emt 0:03:50]} Be6 {[%emt 0:10:23]} 14. Ne4 {[%emt 0:01:54]} Be7 {[%emt 0:01:59]} 15. Qh5 {[%emt 0:05:36]} Bc4 {[%emt 0:10:18]} 16. Ng5 {[%emt 0:07:46]} Bxg5 {[%emt 0:15:55]} 17. Bxg5 {[%emt 0:00:18]} Qc8 {[%emt 0:00:04]} 18. Rf4 {[%emt 0:04:33]} Nd7 {[%emt 0:01:15]} 19. Rxd4 {[%emt 0:00:48]} Bf7 {[%emt 0:00:58]} 20. Qh3 {[%emt 0:01:46]} Nf8 {[%emt 0:00:28]} 21. Qxc8 {[%emt 0:01:11]} Rxc8 {[%emt 0:00:02]} 22. Rd8 {[%emt 0:01:40]} Rxd8 {[%emt 0:01:43]} 23. Bxd8 {[%emt 0:00:03]} Bd5 {[%emt 0:00:55]} 24. Bc7 {[%emt 0:01:52]} Kf7 {[%emt 0:01:15]} 25. Be5 {[%emt 0:01:49]} g6 {[%emt 0:00:26]} 26. Rf1+ {[%emt 0:00:31]} Ke7 {[%emt 0:00:32]} 27. Bd6+ {[%emt 0:02:39]} Kxd6 {[%emt 0:00:10]} 28. Rxf8 {[%emt 0:00:04]} a5 {[%emt 0:01:22]} 29. a3 {[%emt 0:01:50]} a4 {[%emt 0:03:38]} 30. Kf2 {[%emt 0:01:22]} b5 {[%emt 0:01:39]} 31. g3 {[%emt 0:00:35]} Be4 {[%emt 0:01:05]} 32. Rd8+ {[%emt 0:00:59]} Kc5 {[%emt 0:00:51]} 33. Rd2 {[%emt 0:00:24]} Bf5 {[%emt 0:01:16]} 34. Ke3 {[%emt 0:00:18]} h5 {[%emt 0:00:20]} 35. h4 {[%emt 0:01:52]} b4 {[%emt 0:08:15]} 36. axb4+ {[%emt 0:01:15]} Kxb4 {[%emt 0:00:04]} 37. Rd4+ {[%emt 0:00:55]} Kb5 {[%emt 0:01:18]} 38. Kd2 {[%emt 0:00:23]} c5 {[%emt 0:00:43]} 39. Rf4 {[%emt 0:01:42]} Ka5 {[%emt 0:01:35]} 40. Kc3 {[%emt 0:01:04]} Kb5 {[%emt 0:00:13]} 41. Rf2 {[%emt 0:00:42]} Be4 {[%emt 0:00:46]} 42. Rf8 {[%emt 0:01:06]} Bf5 {[%emt 0:00:12]} 43. Rb8+ {[%emt 0:00:56]} Kc6 {[%emt 0:00:15]} 44. Kd2 {[%emt 0:00:30]} Be6 {[%emt 0:03:03]} 45. Re8 {[%emt 0:02:28]} Bd7 {[%emt 0:01:29]} 46. Rg8 {[%emt 0:01:58]} Bf5 {[%emt 0:00:10]} 47. c4 {[%emt 0:00:31]} Kb6 {[%emt 0:01:05]} 48. Rb8+ {[%emt 0:01:18]} Kc7 {[%emt 0:00:31]} 49. Rb5 {[%emt 0:02:13]} Kd6 {[%emt 0:00:09]} 50. Rb6+ {[%emt 0:01:08]} Ke5 {[%emt 0:00:30]} 51. Ke3 {[%emt 0:00:31]} Be6 {[%emt 0:00:50]} 52. Rc6 {[%emt 0:00:28]} 1-0

[Event "84th ESP-ch 2019"]
[Site "Marbella"]
[Date "2019.11.19"]
[Round "4.26"]
[White "Guillo Longares, Cecilia"]
[Black "Jimenez Ruano, Adrian"]
[Result "1-0"]
[ECO "E67"]
[WhiteElo "2100"]
[BlackElo "2269"]
[Annotator "ChessBase"]
[PlyCount "151"]
[EventDate "2019.11.16"]
[EventType "swiss"]
[EventCountry "ESP"]
[SourceTitle "playchess.com"]
[Source "ChessBase"]
[SourceQuality "1"]
[TimeControl "5400+30"]

1. d4 {[%emt 0:00:00]} Nf6 {[%emt 0:00:38]} 2. c4 {[%emt 0:00:00]} g6 {[%emt 0:00:27]} 3. Nf3 {[%emt 0:00:00]} Bg7 {[%emt 0:00:16]} 4. g3 {[%emt 0:00:00]} O-O {[%emt 0:00:07]} 5. Bg2 {[%emt 0:00:00]} d6 {[%emt 0:00:09]} 6. O-O {[%emt 0:00:03]} Nbd7 {[%emt 0:00:08]} 7. Nc3 {[%emt 0:00:05]} e5 {[%emt 0:00:19]} 8. dxe5 {[%emt 0:00:05]} dxe5 {[%emt 0:00:31]} 9. h3 {[%emt 0:00:21]} c6 {[%emt 0:00:47]} 10. Be3 {[%emt 0:00:12]} Qe7 {[%emt 0:12:51]} 11. Qc1 {[%emt 0:01:43]} Re8 {[%emt 0:04:42]} 12. Rd1 {[%emt 0:02:25]} a5 {[%emt 0:19:45]} 13. b3 {[%emt 0:05:47]} Nc5 {[%emt 0:11:30]} 14. Nd2 {[%emt 0:01:10]} Be6 {[%emt 0:07:35]} 15. Kh2 {[%emt 0:03:59]} Qf8 {[%emt 0:12:10]} 16. Qa3 {[%emt 0:04:15]} Nfd7 {[%emt 0:01:20]} 17. Nde4 {[%emt 0:03:39]} Nxe4 {[%emt 0:00:27]} 18. Qxf8+ {[%emt 0:00:07]} Nxf8 {[%emt 0:07:49]} 19. Nxe4 {[%emt 0:00:24]} f5 {[%emt 0:00:33]} 20. Nd6 {[%emt 0:02:05]} Re7 {[%emt 0:00:51]} 21. Rd2 {[%emt 0:02:21]} e4 {[%emt 0:01:45]} 22. Rad1 {[%emt 0:06:43]} Bc3 {[%emt 0:00:28]} 23. Rc2 {[%emt 0:00:06]} Bb4 {[%emt 0:01:11]} 24. c5 {[%emt 0:02:28]} Bd5 {[%emt 0:09:22]} 25. g4 {[%emt 0:04:40]} Be6 {[%emt 0:01:13]} 26. gxf5 {[%emt 0:03:40]} gxf5 {[%emt 0:00:01]} 27. Rg1 {[%emt 0:00:11]} Rg7 {[%emt 0:04:03]} 28. Bd4 {[%emt 0:00:05]} Rg6 {[%emt 0:00:26]} 29. Nxb7 {[%emt 0:03:31]} Bd5 {[%emt 0:01:57]} 30. Nd6 {[%emt 0:10:33]} Rxd6 {[%emt 0:00:02]} 31. cxd6 {[%emt 0:00:41]} Bxd6+ {[%emt 0:00:02]} 32. Kh1 {[%emt 0:00:07]} Kf7 {[%emt 0:00:02]} 33. e3 {[%emt 0:03:13]} Ng6 {[%emt 0:01:35]} 34. Bf1 {[%emt 0:00:30]} c5 {[%emt 0:01:20]} 35. Bb2 {[%emt 0:01:24]} a4 {[%emt 0:00:32]} 36. Bc4 {[%emt 0:05:24]} Bxc4 {[%emt 0:00:05]} 37. bxc4 {[%emt 0:00:55]} Be7 {[%emt 0:00:34]} 38. Rd2 {[%emt 0:00:35]} Ke6 {[%emt 0:00:29]} 39. Bc3 {[%emt 0:02:38]} a3 {[%emt 0:00:26]} 40. Rb1 {[%emt 0:00:45]} Ra4 {[%emt 0:00:18]} 41. Rb3 {[%emt 0:00:16]} Ra6 {[%emt 0:00:59]} 42. Rd5 {[%emt 0:01:31]} Bd6 {[%emt 0:00:38]} 43. Rd1 {[%emt 0:02:20]} f4 {[%emt 0:00:33]} 44. Rb7 {[%emt 0:03:35]} Ne7 {[%emt 0:00:27]} 45. exf4 {[%emt 0:00:17]} h6 {[%emt 0:00:35]} 46. Be5 {[%emt 0:01:44]} Bxe5 {[%emt 0:00:30]} 47. fxe5 {[%emt 0:00:05]} Nf5 {[%emt 0:00:13]} 48. Rd5 {[%emt 0:00:26]} Ra8 {[%emt 0:00:46]} 49. Rxc5 {[%emt 0:00:18]} Nd4 {[%emt 0:00:19]} 50. Rb6+ {[%emt 0:00:43]} Kf5 {[%emt 0:00:30]} 51. e6+ {[%emt 0:02:07]} Kf6 {[%emt 0:00:37]} 52. e7+ {[%emt 0:00:23]} Kxe7 {[%emt 0:00:35]} 53. Rc7+ {[%emt 0:00:24]} Kf8 {[%emt 0:00:27]} 54. Rxh6 {[%emt 0:01:15]} Kg8 {[%emt 0:00:11]} 55. Rg6+ {[%emt 0:00:26]} Kh8 {[%emt 0:00:11]} 56. Rc5 {[%emt 0:00:48]} Kh7 {[%emt 0:00:20]} 57. Rg4 {[%emt 0:00:31]} Kh6 {[%emt 0:00:31]} 58. Rxe4 {[%emt 0:00:27]} Nf3 {[%emt 0:01:01]} 59. Re6+ {[%emt 0:00:47]} Kh7 {[%emt 0:00:03]} 60. Rc7+ {[%emt 0:00:18]} Kh8 {[%emt 0:00:13]} 61. Rd7 {[%emt 0:03:22]} Rb8 {[%emt 0:00:44]} 62. Kg2 {[%emt 0:00:18]} Nh4+ {[%emt 0:00:27]} 63. Kh2 {[%emt 0:00:05]} Nf3+ {[%emt 0:00:58]} 64. Kg3 {[%emt 0:00:25]} Rf8 {[%emt 0:00:51]} 65. Rh6+ {[%emt 0:00:08]} Kg8 {[%emt 0:00:01]} 66. Rhh7 {[%emt 0:00:15]} Rf6 {[%emt 0:00:26]} 67. Rdg7+ {[%emt 0:00:37]} Kf8 {[%emt 0:00:00]} 68. Rg4 {[%emt 0:00:10]} Ng1 {[%emt 0:00:24]} 69. Re4 {[%emt 0:03:41]} Rg6+ {[%emt 0:00:58]} 70. Kf4 {[%emt 0:00:24]} Kg8 {[%emt 0:00:44]} 71. Ra7 {[%emt 0:00:19]} Nxh3+ {[%emt 0:00:07]} 72. Ke3 {[%emt 0:00:05]} Kf8 {[%emt 0:00:31]} 73. Rh4 {[%emt 0:00:25]} Re6+ {[%emt 0:01:01]} 74. Kd2 {[%emt 0:00:06]} Kg8 {[%emt 0:00:17]} 75. Rxh3 {[%emt 0:00:06]} Re4 {[%emt 0:00:03]} 76. Rb3 {[%emt 0:00:42]} 1-0

[Event "84th ESP-ch 2019"]
[Site "Marbella"]
[Date "2019.11.19"]
[Round "4.27"]
[White "Moral Garcia, Serafin"]
[Black "Carbonell Bofill, Carlos Eloy"]
[Result "1-0"]
[ECO "B30"]
[WhiteElo "2267"]
[BlackElo "2098"]
[Annotator "ChessBase"]
[PlyCount "117"]
[EventDate "2019.11.16"]
[EventType "swiss"]
[EventCountry "ESP"]
[SourceTitle "playchess.com"]
[Source "ChessBase"]
[SourceQuality "1"]
[TimeControl "5400+30"]

1. e4 {[%emt 0:00:00]} c5 {[%emt 0:01:58]} 2. Nf3 {[%emt 0:00:00]} Nc6 {[%emt 0:00:03]} 3. Bb5 {[%emt 0:00:18]} Nf6 {[%emt 0:00:14]} 4. Qe2 {[%emt 0:00:37]} Qc7 {[%emt 0:02:11]} 5. O-O {[%emt 0:02:55]} a6 {[%emt 0:02:58]} 6. Bxc6 Qxc6 {[%emt 0:00:27]} 7. d3 {[%emt 0:02:27]} g6 {[%emt 0:00:55]} 8. e5 {[%emt 0:02:53]} Nd5 {[%emt 0:00:10]} 9. c4 {[%emt 0:00:11]} Nc7 {[%emt 0:02:05]} 10. Nc3 {[%emt 0:00:10]} b5 {[%emt 0:00:48]} 11. Bf4 {[%emt 0:03:24]} Bb7 {[%emt 0:00:43]} 12. Qe3 {[%emt 0:03:16]} h6 {[%emt 0:02:20]} 13. Bg3 {[%emt 0:08:34]} h5 {[%emt 0:02:34]} 14. Bh4 {[%emt 0:03:50]} Bh6 {[%emt 0:03:34]} 15. Bg5 {[%emt 0:00:11]} Bxg5 {[%emt 0:00:45]} 16. Qxg5 {[%emt 0:00:05]} Ne6 {[%emt 0:00:16]} 17. Qe3 {[%emt 0:01:18]} Nd4 {[%emt 0:00:31]} 18. Nd5 {[%emt 0:00:09]} e6 {[%emt 0:00:09]} 19. Nxd4 {[%emt 0:02:49]} cxd4 {[%emt 0:00:26]} 20. Nf6+ {[%emt 0:00:01]} Kf8 {[%emt 0:04:07]} 21. Qh3 {[%emt 0:00:30]} g5 {[%emt 0:09:55]} 22. f3 {[%emt 0:02:16]} Ke7 {[%emt 0:04:33]} 23. Qg3 {[%emt 0:01:27]} Rag8 {[%emt 0:00:34]} 24. Nxg8+ {[%emt 0:03:02]} Rxg8 {[%emt 0:00:01]} 25. Rf2 {[%emt 0:03:33]} bxc4 {[%emt 0:05:00]} 26. Rc1 {[%emt 0:00:10]} d5 {[%emt 0:00:12]} 27. exd6+ {[%emt 0:00:10]} Qxd6 {[%emt 0:00:02]} 28. Qxd6+ {[%emt 0:00:16]} Kxd6 {[%emt 0:00:01]} 29. Rxc4 {[%emt 0:00:07]} e5 {[%emt 0:00:20]} 30. Rfc2 {[%emt 0:02:26]} g4 {[%emt 0:02:48]} 31. Rb4 {[%emt 0:00:27]} Ba8 {[%emt 0:03:07]} 32. Rb6+ {[%emt 0:00:23]} Kd7 {[%emt 0:00:38]} 33. fxg4 {[%emt 0:01:09]} Rxg4 {[%emt 0:01:03]} 34. Rxa6 {[%emt 0:00:05]} Bd5 {[%emt 0:00:38]} 35. Re2 {[%emt 0:01:38]} e4 {[%emt 0:00:19]} 36. dxe4 {[%emt 0:01:16]} d3 {[%emt 0:00:03]} 37. Rd2 {[%emt 0:00:58]} Bxe4 {[%emt 0:00:49]} 38. Ra3 {[%emt 0:00:35]} h4 {[%emt 0:06:10]} 39. Raxd3+ {[%emt 0:00:16]} Ke6 {[%emt 0:00:14]} 40. Rc3 {[%emt 0:00:47]} f5 {[%emt 0:00:37]} 41. b4 {[%emt 0:02:17]} Bd5 {[%emt 0:00:37]} 42. Re3+ {[%emt 0:00:37]} Be4 {[%emt 0:00:20]} 43. a3 {[%emt 0:01:00]} Ke5 {[%emt 0:00:01]} 44. Rc3 {[%emt 0:02:37]} Bb7 {[%emt 0:08:28]} 45. Rc5+ {[%emt 0:03:22]} Kf6 {[%emt 0:02:40]} 46. b5 {[%emt 0:02:13]} h3 {[%emt 0:00:11]} 47. g3 {[%emt 0:00:29]} Ra4 {[%emt 0:01:56]} 48. Rd3 {[%emt 0:03:20]} Be4 {[%emt 0:00:29]} 49. Re3 {[%emt 0:01:59]} Rd4 {[%emt 0:00:56]} 50. Kf2 {[%emt 0:00:48]} Rd1 {[%emt 0:10:02]} 51. g4 {[%emt 0:03:06]} Rd2+ {[%emt 0:01:54]} 52. Re2 {[%emt 0:01:12]} Rd3 {[%emt 0:02:11]} 53. gxf5 {[%emt 0:00:40]} Bxf5 {[%emt 0:01:29]} 54. Re3 {[%emt 0:02:10]} Rd2+ {[%emt 0:00:06]} 55. Ke1 {[%emt 0:00:46]} Rxh2 {[%emt 0:00:56]} 56. Rf3 {[%emt 0:00:03]} Rh1+ {[%emt 0:00:08]} 57. Kf2 {[%emt 0:00:03]} h2 {[%emt 0:00:05]} 58. Rfxf5+ {[%emt 0:00:11]} Kg6 {[%emt 0:00:02]} 59. Kg2 1-0

[Event "84th ESP-ch 2019"]
[Site "Marbella"]
[Date "2019.11.19"]
[Round "4.28"]
[White "Sosa Suarez, Carla Cristina"]
[Black "Kolotilina, Liudmila"]
[Result "1/2-1/2"]
[ECO "B06"]
[WhiteElo "2022"]
[BlackElo "2242"]
[Annotator "ChessBase"]
[PlyCount "102"]
[EventDate "2019.11.16"]
[EventType "swiss"]
[EventCountry "ESP"]
[SourceTitle "playchess.com"]
[Source "ChessBase"]
[SourceQuality "1"]
[TimeControl "5400+30"]

1. e4 {[%emt 0:00:00]} d6 {[%emt 0:00:00]} 2. d4 {[%emt 0:00:00]} g6 {[%emt 0:00:00]} 3. Nc3 {[%emt 0:00:28]} Bg7 {[%emt 0:00:00]} 4. Be3 {[%emt 0:00:37]} a6 {[%emt 0:00:00]} 5. f4 {[%emt 0:01:46]} b5 {[%emt 0:00:10]} 6. a3 {[%emt 0:01:47]} Bb7 {[%emt 0:00:50]} 7. Nf3 {[%emt 0:04:55]} Nf6 {[%emt 0:02:54]} 8. e5 {[%emt 0:10:15]} Ng4 {[%emt 0:01:51]} 9. Bg1 {[%emt 0:08:11]} O-O {[%emt 0:01:07]} 10. Bd3 {[%emt 0:05:41]} c5 {[%emt 0:10:38]} 11. dxc5 {[%emt 0:09:43]} Nd7 {[%emt 0:20:16]} 12. c6 {[%emt 0:23:32]} Bxc6 {[%emt 0:00:05]} 13. Qe2 {[%emt 0:00:05]} dxe5 {[%emt 0:02:26]} 14. h3 {[%emt 0:02:12]} Ngf6 {[%emt 0:12:49]} 15. fxe5 {[%emt 0:02:24]} Nd5 {[%emt 0:10:35]} 16. Nxd5 {[%emt 0:00:45]} Bxd5 {[%emt 0:00:02]} 17. Bd4 {[%emt 0:01:22]} e6 {[%emt 0:01:56]} 18. O-O {[%emt 0:02:13]} Nb6 {[%emt 0:02:18]} 19. Bc5 {[%emt 0:01:54]} Re8 {[%emt 0:01:03]} 20. Qe3 {[%emt 0:04:39]} Nd7 {[%emt 0:05:25]} 21. Bd4 {[%emt 0:01:29]} Bxf3 {[%emt 0:06:11]} 22. Rxf3 {[%emt 0:00:17]} Qc7 {[%emt 0:00:35]} 23. Re1 {[%emt 0:01:49]} Rac8 {[%emt 0:02:08]} 24. a4 {[%emt 0:01:19]} Nc5 {[%emt 0:02:20]} 25. axb5 {[%emt 0:01:18]} Nxd3 {[%emt 0:01:16]} 26. Qxd3 {[%emt 0:00:27]} axb5 {[%emt 0:00:45]} 27. Qxb5 {[%emt 0:00:54]} Qxc2 {[%emt 0:01:22]} 28. Ref1 {[%emt 0:00:30]} Rf8 {[%emt 0:03:27]} 29. Bc3 {[%emt 0:02:33]} Qe4 {[%emt 0:01:40]} 30. Qd7 {[%emt 0:02:24]} Rcd8 {[%emt 0:01:57]} 31. Qe7 {[%emt 0:00:36]} Rde8 {[%emt 0:00:52]} 32. Qc5 {[%emt 0:01:12]} Rc8 {[%emt 0:00:13]} 33. Qf2 {[%emt 0:00:45]} Rc7 {[%emt 0:03:05]} 34. Rf4 {[%emt 0:01:01]} Qd5 {[%emt 0:01:11]} 35. Bb4 {[%emt 0:00:41]} Qxe5 {[%emt 0:03:08]} 36. Bxf8 {[%emt 0:00:50]} Bxf8 {[%emt 0:00:02]} 37. Kh1 {[%emt 0:00:40]} Bd6 {[%emt 0:00:19]} 38. Qd4 {[%emt 0:01:59]} Qxd4 {[%emt 0:01:28]} 39. Rxd4 {[%emt 0:00:04]} Bg3 {[%emt 0:00:50]} 40. b4 {[%emt 0:00:53]} e5 {[%emt 0:00:18]} 41. Rd3 {[%emt 0:01:18]} Bh4 {[%emt 0:00:12]} 42. Re3 {[%emt 0:01:03]} f6 {[%emt 0:00:24]} 43. b5 {[%emt 0:00:34]} Rb7 {[%emt 0:00:23]} 44. Rb3 {[%emt 0:00:25]} e4 {[%emt 0:01:33]} 45. g3 {[%emt 0:00:34]} Bg5 {[%emt 0:00:21]} 46. h4 {[%emt 0:00:21]} Bd2 {[%emt 0:00:28]} 47. Rxf6 {[%emt 0:01:03]} e3 {[%emt 0:00:37]} 48. Re6 {[%emt 0:01:37]} Kf7 {[%emt 0:00:03]} 49. Rexe3 {[%emt 0:01:34]} Bxe3 {[%emt 0:00:13]} 50. Rxe3 {[%emt 0:00:04]} Rxb5 {[%emt 0:00:03]} 51. Kg2 {[%emt 0:00:14]} Kf6 {[%emt 0:00:07]} 1/2-1/2

[Event "84th ESP-ch 2019"]
[Site "Marbella"]
[Date "2019.11.19"]
[Round "4.29"]
[White "Garcia Romero, Benjamin Abel"]
[Black "Ruiz Buendia, Miguel"]
[Result "1-0"]
[ECO "A40"]
[WhiteElo "2234"]
[BlackElo "1875"]
[Annotator "ChessBase"]
[PlyCount "85"]
[EventDate "2019.11.16"]
[EventType "swiss"]
[EventCountry "ESP"]
[SourceTitle "playchess.com"]
[Source "ChessBase"]
[SourceQuality "1"]
[TimeControl "5400+30"]

1. d4 {[%emt 0:02:36]} Nf6 {[%emt 0:00:00]} 2. c4 {[%emt 0:00:32]} e6 {[%emt 0:00:00]} 3. g3 {[%emt 0:01:05]} Bb4+ {[%emt 0:00:00]} 4. Bd2 {[%emt 0:00:27]} a5 {[%emt 0:00:00]} 5. Bg2 {[%emt 0:00:24]} O-O {[%emt 0:00:28]} 6. e4 {[%emt 0:01:09]} d6 {[%emt 0:01:08]} 7. Ne2 {[%emt 0:02:19]} Nbd7 {[%emt 0:02:17]} 8. O-O {[%emt 0:00:37]} e5 {[%emt 0:00:24]} 9. Nbc3 {[%emt 0:07:00]} Re8 {[%emt 0:00:37]} 10. Qc2 {[%emt 0:02:39]} exd4 {[%emt 0:00:44]} 11. Nxd4 {[%emt 0:00:11]} Ne5 {[%emt 0:00:05]} 12. b3 {[%emt 0:00:50]} Bc5 {[%emt 0:00:14]} 13. Nf5 {[%emt 0:02:42]} Nc6 {[%emt 0:07:39]} 14. Rad1 {[%emt 0:10:30]} Bxf5 {[%emt 0:10:27]} 15. exf5 {[%emt 0:00:10]} Qd7 {[%emt 0:00:58]} 16. Qd3 {[%emt 0:08:09]} Ne5 {[%emt 0:04:51]} 17. Qb1 {[%emt 0:00:50]} Nc6 {[%emt 0:03:37]} 18. Bg5 {[%emt 0:05:10]} Ng4 {[%emt 0:01:40]} 19. h3 {[%emt 0:04:36]} Nge5 {[%emt 0:01:21]} 20. Kh1 {[%emt 0:09:00]} Nd4 {[%emt 0:01:38]} 21. Be3 {[%emt 0:03:35]} Nec6 {[%emt 0:03:04]} 22. Nb5 {[%emt 0:02:00]} Rxe3 {[%emt 0:05:31]} 23. fxe3 {[%emt 0:01:08]} Nxb5 {[%emt 0:10:11]} 24. cxb5 {[%emt 0:00:06]} Ne5 {[%emt 0:02:09]} 25. f6 {[%emt 0:00:45]} Re8 {[%emt 0:06:39]} 26. fxg7 {[%emt 0:04:44]} Bxe3 {[%emt 0:04:22]} 27. Kh2 {[%emt 0:00:13]} Kxg7 {[%emt 0:01:59]} 28. a4 {[%emt 0:01:35]} b6 {[%emt 0:03:38]} 29. Rf5 {[%emt 0:02:12]} Re6 {[%emt 0:01:35]} 30. Rdf1 {[%emt 0:07:13]} Rg6 {[%emt 0:02:06]} 31. Bd5 {[%emt 0:01:12]} f6 {[%emt 0:01:58]} 32. b4 {[%emt 0:01:40]} axb4 {[%emt 0:02:41]} 33. Qxb4 {[%emt 0:00:20]} Qe8 {[%emt 0:04:02]} 34. Qe4 {[%emt 0:01:51]} Rh6 {[%emt 0:02:11]} 35. Kg2 {[%emt 0:00:18]} Bg5 {[%emt 0:00:46]} 36. h4 {[%emt 0:10:16]} Bd2 {[%emt 0:02:12]} 37. R1f2 {[%emt 0:02:51]} Ba5 {[%emt 0:01:19]} 38. Rc2 {[%emt 0:01:06]} Qd7 {[%emt 0:00:48]} 39. h5 {[%emt 0:01:06]} Qe7 {[%emt 0:01:43]} 40. g4 {[%emt 0:00:17]} Qd7 {[%emt 0:02:50]} 41. Bb3 {[%emt 0:00:40]} d5 {[%emt 0:01:54]} 42. Bxd5 {[%emt 0:01:22]} Kh8 {[%emt 0:01:01]} 43. Rxe5 {[%emt 0:00:25]} 1-0